bitfinex-derivatives/quotes_ETHF0:USTF0_20250804
["timestamp","ask_amount","ask_price","bid_price","bid_amount"]
[1754331259416,3.8833,3679.1,3679.0,3.7692]
[1754331260220,3.8833,3679.4,3679.3,2.07102]
[1754331260518,3.8833,3679.4,3679.3,4.31272]
[1754331260715,2.4988,3679.8,3679.7,0.54346]
[1754331261016,4.66932774,3679.8,3679.7,3.7692]
[1754331261614,3.8833,3679.8,3679.7,3.7692]
[1754331262011,3.2078,3679.9,3679.8,4.31264]
[1754331262210,0.54338,3680.3,3680.2,4.31258]
[1754331262211,5.5791,3680.3,3680.2,4.31258]
[1754331262415,6.36535396,3680.3,3680.2,4.31258]
[1754331262621,7.87735396,3680.3,3680.2,4.31258]
[1754331263023,7.0911,3680.3,3680.2,4.31258]
[1754331263424,5.5748,3680.3,3680.2,4.31258]
[1754331263624,7.0911,3680.3,3680.2,4.31258]
[1754331263819,7.63447,3680.3,3680.2,4.31258]
[1754331264014,4.42667,3680.3,3680.2,4.31258]
[1754331264213,5.21345278,3680.3,3680.2,4.31258]
[1754331264615,4.42667,3680.3,3680.2,1.106]
[1754331264820,4.42667,3680.3,3680.2,0.552]
[1754331265020,2.3642,3680.0,3679.9,0.54342]
[1754331265224,2.3642,3680.0,3679.6,5.4495]
[1754331265225,3.8833,3679.9,3679.8,0.54343]
[1754331265723,2.6098,3679.4,3679.3,0.54351]
[1754331265922,4.56639,3679.9,3679.2,1.08572]
[1754331265923,3.9026,3679.3,3679.2,1.08572]
[1754331266229,3.9026,3679.6,3679.5,4.27439]
[1754331266528,1.5247,3679.6,3679.5,4.27439]
[1754331266824,3.9026,3679.6,3679.5,2.05929]
[1754331267123,3.9026,3679.6,3679.5,1.08569]
[1754331267426,3.9026,3679.2,3679.1,3.7309]
[1754331267625,3.9026,3679.2,3679.1,4.27445]
[1754331267823,3.9026,3679.2,3679.1,0.5422]
[1754331268331,3.0594,3679.2,3679.1,1.0932]
[1754331268628,3.0594,3679.2,3679.1,3.7309]
[1754331268924,7.1104,3679.5,3679.4,3.7309]
[1754331269122,3.9026,3679.5,3679.4,4.2744]
[1754331269427,3.9026,3679.5,3679.4,3.7309]
[1754331269625,0.5435,3679.4,3679.2,0.54352]
[1754331269826,3.9026,3679.3,3679.2,1.63672]
[1754331270026,3.9026,3679.3,3679.2,4.27442]
[1754331272226,3.0594,3679.3,3679.2,4.27442]
[1754331272432,1.5247,3679.3,3679.2,4.27442]
[1754331272723,0.9885,3679.7,3679.6,1.5158]
[1754331272932,3.9026,3679.7,3679.6,3.7309]
[1754331275531,3.9026,3679.7,3679.6,1.0932]
[1754331277020,0.5362,3679.9,3679.8,2.05923]
[1754331277223,4.69319925,3679.9,3679.8,4.27433]
[1754331277625,0.79059925,3679.9,3679.8,4.27433]
[1754331278433,0.96220356,3680.5,3680.3,3.27807]
[1754331278624,1.95070356,3680.5,3680.4,1.0932]
[1754331278830,4.86480356,3680.5,3680.4,1.9309]
[1754331279026,5.00067527,3680.5,3680.4,2.7347]
[1754331280034,4.15747527,3680.5,3680.4,2.7347]
[1754331280539,4.03847171,3680.5,3680.4,2.7347]
[1754331280830,3.19527171,3680.5,3680.4,2.7347]
[1754331281038,2.53577171,3680.5,3680.4,2.7347]
[1754331281337,3.9026,3680.5,3680.4,0.5422]
[1754331281539,4.44596,3680.4,3680.3,0.8857]
[1754331282239,3.9026,3680.4,3680.3,0.8857]
[1754331282440,3.0594,3680.4,3680.3,3.6204]
[1754331282635,3.2431,3680.6,3680.5,2.7347]
[1754331282840,1.8317,3680.6,3680.5,2.7347]
[1754331283036,2.3999,3680.6,3680.5,2.7347]
[1754331283237,3.9026,3680.6,3680.5,2.7347]
[1754331284740,3.9026,3680.4,3680.3,0.8857]
[1754331287135,3.9026,3680.4,3679.7,0.54345]
[1754331287136,8.0439,3680.4,3679.7,0.54345]
[1754331287455,3.9026,3679.8,3679.7,1.08565]
[1754331287855,3.9026,3679.8,3679.7,1.50825]
[1754331288037,3.2078,3680.0,3679.3,0.6573]
[1754331288038,1.5247,3679.6,3679.3,0.6573]
[1754331288242,3.9026,3679.5,3679.4,1.5083]
[1754331288544,3.9026,3679.5,3679.4,4.3581]
[1754331289249,3.9026,3679.5,3679.4,0.5435]
[1754331289746,3.9026,3679.5,3679.4,1.0857]
[1754331290343,3.9026,3679.5,3679.4,0.5422]
[1754331290647,4.4461,3679.4,3679.3,0.54351]
[1754331290848,2.06823,3679.3,3679.2,1.08572]
[1754331291038,4.44613,3679.3,3679.2,1.08572]
[1754331291641,3.9026,3679.3,3679.2,1.08572]
[1754331291945,3.9026,3679.3,3679.2,2.05932]
[1754331292249,3.9026,3679.3,3679.2,1.08572]
[1754331293135,3.9026,3679.3,3679.2,3.55432]
[1754331293334,3.9026,3679.3,3679.2,4.35812]
[1754331293644,3.9026,3679.3,3679.2,0.5422]
[1754331295248,1.64333,3679.2,3679.1,0.54354]
[1754331295450,4.44613,3679.2,3679.1,1.08574]
[1754331296548,3.9026,3679.2,3679.1,4.37394]
[1754331296745,2.3457,3679.5,3679.4,3.7744]
[1754331296945,3.8093,3679.5,3679.4,3.7744]
[1754331297248,3.8093,3679.5,3679.4,2.0647]
[1754331297449,3.8093,3679.3,3679.2,4.31792]
[1754331297647,0.54361,3678.8,3678.7,3.315]
[1754331297945,4.56652,3679.6,3678.8,2.86458]
[1754331297946,1.4821,3678.9,3678.8,2.86458]
[1754331298145,1.4821,3678.9,3678.8,4.31798]
[1754331298349,3.8093,3678.9,3678.8,4.31798]
[1754331298851,3.8093,3678.9,3678.8,3.7744]
[1754331299646,4.35296,3678.4,3678.3,2.54535]
[1754331299851,3.8093,3678.4,3678.3,3.46955]
[1754331300148,3.8093,3678.4,3678.3,4.31805]
[1754331300348,2.3457,3678.4,3678.3,4.31805]
[1754331300650,3.8093,3678.4,3678.3,4.31805]
[1754331300952,2.3457,3678.4,3678.3,4.31805]
[1754331301447,3.8093,3678.4,3678.3,4.31805]
[1754331302140,3.8093,3678.4,3678.0,1.4661]
[1754331302141,2.9939,3678.4,3678.0,1.4661]
[1754331302342,3.8093,3678.1,3678.0,2.0017]
[1754331302748,4.35299,3678.1,3678.0,2.9259]
[1754331302946,4.35299,3678.1,3678.0,3.7744]
[1754331303545,3.8093,3678.1,3678.0,3.7744]
[1754331303942,3.53756,3678.4,3678.3,3.7744]
[1754331304154,2.1303,3678.0,3677.9,1.4598]
[1754331304345,2.1303,3678.0,3677.5,2.0647]
[1754331304346,0.5525,3677.6,3677.5,2.0647]
[1754331304544,0.5525,3677.6,3677.4,0.54379]
[1754331304545,3.8093,3678.0,3677.9,2.9132]
[1754331304745,0.4017,3678.0,3677.9,2.9132]
[1754331304944,0.54371,3678.1,3678.0,3.7744]
[1754331305151,3.75149,3678.2,3678.0,3.7744]
[1754331305344,3.75149,3678.2,3678.1,3.1695]
[1754331305650,0.54363,3678.6,3678.1,3.7744]
[1754331305951,2.02572,3678.7,3678.6,3.7744]
[1754331306150,4.35292,3678.7,3678.6,3.7744]
[1754331306353,3.75136,3679.0,3678.9,3.7744]
[1754331306551,3.75136,3679.0,3678.5,3.2388]
[1754331306552,2.02573,3678.6,3678.5,3.2388]
[1754331306855,4.35293,3678.6,3678.5,2.9259]
[1754331307560,4.35293,3678.6,3678.5,3.7744]
[1754331307854,2.02571,3678.7,3678.6,1.46782]
[1754331308056,0.54359,3678.8,3678.6,4.31802]
[1754331308255,3.75136,3679.0,3678.9,3.2388]
[1754331308559,3.2078,3679.0,3678.9,3.7744]
[1754331308954,5.5535,3679.0,3678.9,3.7744]
[1754331309656,3.2078,3679.0,3678.9,3.7744]
[1754331310349,5.5535,3679.0,3678.9,3.7744]
[1754331310545,7.0171,3679.0,3678.9,3.7744]
[1754331311953,3.2078,3679.0,3678.5,0.033]
[1754331312156,2.67392,3678.7,3678.6,2.9132]
[1754331312351,3.48932,3678.7,3678.6,0.5356]
[1754331312756,4.35292,3678.7,3678.6,2.9259]
[1754331313157,4.35292,3678.7,3678.6,3.7744]
[1754331313757,3.8093,3678.7,3678.6,3.7744]
[1754331314057,5.5535,3679.0,3678.9,4.31798]
[1754331314457,7.0171,3679.0,3678.9,4.31798]
[1754331314860,6.2017,3679.0,3678.9,4.31798]
[1754331315059,1.4821,3679.0,3678.9,4.31798]
[1754331315559,3.8093,3679.0,3678.9,0.5356]
[1754331316552,0.5525,3678.8,3678.7,1.9182]
[1754331316748,3.8093,3678.8,3678.7,3.7744]
[1754331317259,2.3272,3678.6,3678.5,0.5686]
[1754331317464,3.8093,3678.6,3678.5,0.033]
[1754331318255,3.8093,3678.6,3678.5,0.5686]
[1754331318655,3.8093,3678.6,3678.5,0.033]
[1754331320462,3.8093,3678.6,3678.5,1.4928]
[1754331320664,2.3457,3678.6,3678.5,3.8074]
[1754331320862,3.8093,3678.6,3678.5,3.8074]
[1754331321264,1.4821,3678.6,3678.5,3.8074]
[1754331321469,2.9939,3678.8,3678.7,4.31799]
[1754331321954,3.8093,3678.8,3678.7,4.31799]
[1754331322466,3.8093,3678.6,3678.5,0.5686]
[1754331322861,7.0171,3678.6,3678.5,0.033]
[1754331323271,1.4821,3677.9,3677.8,2.00353]
[1754331323567,3.8093,3677.9,3677.8,4.31813]
[1754331323869,7.0171,3678.2,3678.1,3.7744]
[1754331324271,4.6899,3678.2,3678.1,3.7744]
[1754331324456,3.2078,3678.2,3678.1,3.7744]
[1754331324663,3.8093,3678.6,3678.5,4.31802]
[1754331324965,0.9296,3678.6,3678.5,4.31802]
[1754331325172,3.8093,3678.6,3678.5,4.31802]
[1754331325465,4.35296,3678.4,3678.3,1.07926]
[1754331325968,4.35296,3678.4,3678.3,4.20906]
[1754331326667,4.35296,3678.4,3678.2,0.54367]
[1754331326864,3.7854,3678.3,3678.2,3.60587]
[1754331327065,3.7854,3678.3,3678.2,4.23967]
[1754331327567,3.53866,3678.4,3678.3,4.23965]
[1754331327766,3.53866,3678.4,3678.2,0.54367]
[1754331327767,1.4664,3678.3,3678.2,0.54367]
[1754331327968,3.53868,3678.2,3678.1,0.5305]
[1754331328167,4.32911,3678.1,3678.0,1.0742]
[1754331328367,3.7854,3678.1,3678.0,2.6679]
[1754331328569,3.7854,3678.1,3678.0,4.2397]
[1754331328761,2.995,3678.1,3678.0,4.2397]
[1754331328962,3.7854,3678.1,3678.0,4.2397]
[1754331330971,4.32911,3678.0,3677.9,1.07422]
[1754331331268,4.32911,3678.0,3677.9,0.5305]
[1754331331965,4.32911,3678.0,3677.9,0.9467]
[1754331332161,4.32911,3678.0,3677.9,0.5305]
[1754331332365,3.7854,3677.6,3677.5,3.45738]
[1754331332563,3.7854,3677.6,3677.5,4.23978]
[1754331332868,2.8628,3677.4,3677.3,0.5305]
[1754331333172,4.3292,3677.4,3677.3,0.5305]
[1754331333669,1.5286,3677.1,3677.0,0.54386]
[1754331333973,1.5286,3677.0,3676.9,4.28216]
[1754331334268,3.7854,3677.0,3676.9,7.44766]
[1754331334474,0.54392,3676.6,3676.1,6.62091723]
[1754331334672,2.2568,3676.5,3676.2,3.08652386]
[1754331334872,2.07252,3676.7,3676.6,0.9467]
[1754331335172,3.2078,3676.8,3676.2,0.17265386]
[1754331335373,3.7854,3676.3,3676.2,3.63023386]
[1754331335567,2.319,3676.5,3676.4,2.91385]
[1754331335764,1.3471,3676.5,3676.4,4.23995]
[1754331335965,0.5567,3676.5,3676.4,4.23995]
[1754331336163,4.32936,3676.3,3676.2,0.17265386]
[1754331336377,7.53716,3676.3,3676.2,0.17265386]
[1754331340375,3.2078,3676.3,3676.2,0.70315386]
[1754331340574,2.9486,3677.2,3677.1,0.5305]
[1754331340766,0.78233098,3677.2,3677.1,3.696]
[1754331341075,4.56773098,3677.6,3677.5,2.66798]
[1754331341270,4.56773098,3677.6,3677.5,4.23978]
[1754331341677,3.7854,3677.6,3677.5,4.23978]
[1754331342173,0.7904,3678.4,3678.3,0.54367]
[1754331342373,2.86265,3678.4,3678.3,3.696]
[1754331342576,5.11160965,3678.4,3678.3,0.5305]
[1754331342882,1.5286,3677.9,3677.8,2.3699]
[1754331343276,1.5286,3677.6,3677.5,1.3199]
[1754331343578,1.5286,3677.3,3677.2,4.23982]
[1754331343774,5.5268,3677.8,3677.7,1.49045]
[1754331344071,1.42,3677.9,3677.8,1.4162]
[1754331344270,0.54374,3677.8,3677.4,1.3262]
[1754331344477,2.2568,3677.8,3677.5,2.7361]
[1754331344678,2.9486,3678.1,3678.0,1.7423]
[1754331344876,4.32909,3678.1,3678.0,3.696]
[1754331345078,0.54374,3677.9,3677.7,0.54374]
[1754331345380,3.1558,3677.7,3677.6,2.66796]
[1754331345577,2.1582,3678.0,3677.9,2.03412]
[1754331345772,2.9486,3678.0,3677.9,3.696]
[1754331345974,3.7854,3678.0,3677.9,3.696]
[1754331346173,3.2078,3678.2,3678.1,3.696]
[1754331346680,23.6044,3678.6,3678.5,0.9467]
[1754331346881,4.7364,3678.6,3678.2,1.32607]
[1754331347077,1.5286,3678.3,3678.2,3.45727]
[1754331347379,3.1558,3678.3,3678.2,3.696]
[1754331347679,1.5286,3678.3,3678.2,3.696]
[1754331348374,3.1558,3678.3,3678.2,3.696]
[1754331348575,3.7854,3678.3,3678.2,3.696]
[1754331350578,3.7854,3678.3,3678.2,1.4904]
[1754331350774,0.54374,3677.9,3677.7,3.2078]
[1754331350971,3.7854,3677.5,3677.4,2.668]
[1754331351373,3.7854,3677.5,3677.4,1.4904]
[1754331351781,0.6296,3677.4,3677.3,0.5438]
[1754331351979,3.7854,3677.4,3677.3,3.4574]
[1754331352280,3.7854,3677.4,3677.3,4.2398]
[1754331352480,0.9719,3677.7,3677.6,0.54377]
[1754331352680,3.7854,3677.7,3677.6,3.45737]
[1754331353281,3.7854,3677.7,3677.6,0.5305]
[1754331355187,4.32917,3677.6,3677.4,1.32619]
[1754331355387,3.7854,3677.5,3677.4,1.85669]
[1754331355683,3.7854,3677.5,3677.4,4.24779]
[1754331356083,1.5286,3677.5,3677.4,4.24779]
[1754331356282,3.6884,3677.7,3677.6,4.21795]
[1754331356781,3.6884,3677.7,3677.6,1.4307]
[1754331357085,1.4821,3677.3,3677.2,1.4307]
[1754331357284,3.6884,3677.3,3677.2,3.6742]
[1754331357583,0.5128,3677.3,3677.2,3.6742]
[1754331357878,3.30029,3677.5,3677.4,0.5353]
[1754331358078,2.02589,3677.5,3677.4,1.4307]
[1754331358680,4.23219,3677.5,3677.4,1.4307]
[1754331359585,4.23221,3677.3,3677.2,1.07912]
[1754331359984,3.6884,3677.3,3677.2,1.07912]
[1754331360284,3.6884,3677.3,3677.2,3.40572]
[1754331360485,3.6884,3677.3,3677.2,4.21802]
[1754331360893,1.4821,3677.1,3677.0,1.07915]
[1754331361082,2.026,3676.7,3676.6,3.7431]
[1754331361280,4.23236,3676.3,3676.2,0.17265386]
[1754331361480,7.44016,3676.3,3676.2,0.17265386]
[1754331362282,7.44016,3676.3,3676.2,0.70795386]
[1754331362283,6.8962,3676.3,3676.2,0.70795386]
[1754331362482,6.8962,3676.3,3676.2,3.84685386]
[1754331362886,6.8962,3676.3,3676.2,3.03455386]
[1754331363089,6.8962,3676.3,3676.2,0.70795386]
[1754331363584,6.8962,3676.3,3676.2,1.25193386]
[1754331363980,6.8962,3676.3,3676.2,1.76113386]
[1754331364179,2.305,3676.3,3676.2,4.39083386]
[1754331364384,6.3834,3676.7,3676.6,3.6742]
[1754331364690,6.8962,3676.7,3676.6,3.6742]
[1754331364883,4.6899,3676.7,3676.6,3.6742]
[1754331365080,2.6254,3677.0,3676.9,0.3862]
[1754331365388,3.6884,3677.0,3676.9,3.6742]
[1754331365991,3.6884,3677.0,3676.9,2.8619]
[1754331366287,3.6884,3677.0,3676.9,3.6742]
[1754331366487,4.23227,3676.9,3676.8,0.5353]
[1754331366784,4.23227,3676.9,3676.7,0.54389]
[1754331366785,3.6884,3676.8,3676.7,0.5353]
[1754331367589,6.8962,3676.8,3676.7,0.5353]
[1754331368183,1.4821,3676.6,3676.5,1.9665]
[1754331368389,3.6884,3676.4,3676.3,2.09515]
[1754331368589,3.6884,3676.4,3676.3,1.5512]
[1754331368782,3.6884,3676.4,3676.3,0.5353]
[1754331369085,3.6884,3676.4,3676.3,1.723]
[1754331369286,3.6884,3676.4,3676.3,3.6742]
[1754331369482,2.305,3676.7,3676.6,1.43931]
[1754331369687,3.6884,3676.7,3676.6,1.4307]
[1754331369984,3.6884,3676.7,3676.6,2.8619]
[1754331370386,3.6884,3676.7,3676.6,3.6742]
[1754331370788,3.6884,3676.5,3676.4,0.54394]
[1754331370981,4.23235,3676.4,3676.3,2.60435]
[1754331371182,3.6884,3676.4,3676.3,3.40585]
[1754331371388,3.6884,3676.4,3676.3,4.21815]
[1754331371888,3.6884,3676.3,3676.2,0.17265386]
[1754331375189,3.6884,3676.3,3676.2,3.84685386]
[1754331377390,3.6884,3676.3,3676.2,0.70795386]
[1754331377586,3.6884,3676.3,3676.2,0.17265386]
[1754331378886,3.6884,3676.3,3676.2,3.84685386]
[1754331380087,2.305,3676.3,3676.2,3.84685386]
[1754331380393,3.6884,3676.3,3676.2,3.84685386]
[1754331380586,3.6884,3676.3,3676.2,0.17265386]
[1754331380787,3.6884,3676.3,3676.2,3.03455386]
[1754331380994,3.6884,3676.3,3676.2,3.84685386]
[1754331381191,3.2078,3676.4,3676.3,3.6742]
[1754331382889,2.8655,3676.7,3676.6,1.97462]
[1754331383089,3.6884,3676.7,3676.6,4.21812]
[1754331383284,2.2696,3676.7,3676.6,4.21812]
[1754331383491,3.2078,3676.9,3676.8,4.21809]
[1754331383693,6.61708,3677.5,3677.4,1.4307]
[1754331383994,1.4821,3676.6,3676.5,0.5353]
[1754331384197,2.305,3676.6,3676.5,0.5353]
[1754331384393,3.2078,3676.7,3676.6,1.07922]
[1754331384595,1.8505,3676.7,3676.6,1.3368]
[1754331384792,3.6884,3676.7,3676.6,3.6742]
[1754331385203,3.6884,3676.7,3676.6,2.3527]
[1754331385500,3.6884,3676.7,3676.6,3.6742]
[1754331385687,2.1649,3677.0,3676.9,3.5719]
[1754331385892,3.5455,3677.0,3676.9,3.5719]
[1754331386094,2.2727,3677.0,3676.9,3.5719]
[1754331386398,3.5455,3677.1,3677.0,1.3842]
[1754331387200,3.5455,3677.1,3677.0,0.5053]
[1754331387395,0.3901,3676.8,3676.7,2.73159]
[1754331387607,3.5455,3676.8,3676.7,4.11579]
[1754331388398,2.1649,3677.1,3677.0,1.92805]
[1754331388593,3.5455,3677.1,3677.0,1.3842]
[1754331388801,4.33305943,3677.1,3677.0,1.3842]
[1754331388996,4.33305943,3677.1,3677.0,0.8841]
[1754331389200,4.47175778,3677.1,3677.0,2.7515]
[1754331389499,3.5455,3677.1,3677.0,1.998]
[1754331390296,3.5455,3677.1,3676.9,0.54386]
[1754331390297,0.54386,3677.0,3676.8,1.5739]
[1754331390503,2.7693,3676.3,3676.2,6.67593386]
[1754331390705,3.5455,3676.3,3676.2,4.28853386]
[1754331391301,3.5455,3676.3,3676.2,2.96803386]
[1754331391496,0.4966,3676.3,3676.2,3.78843386]
[1754331391699,2.1649,3676.6,3676.5,3.36233]
[1754331391901,2.24040356,3677.7,3677.6,0.5053]
[1754331392201,4.47156669,3677.7,3677.6,3.5719]
[1754331392402,1.42806669,3677.7,3677.6,2.7515]
[1754331392601,2.31476669,3677.7,3677.6,3.5719]
[1754331392905,0.92606669,3677.7,3677.6,3.5719]
[1754331393092,0.78740745,3677.7,3677.6,3.5719]
[1754331393299,0.92606669,3677.8,3677.7,1.92795]
[1754331393496,0.92606669,3677.8,3677.7,4.11565]
[1754331394005,4.5884,3678.2,3677.8,3.5719]
[1754331394006,3.5455,3677.9,3677.8,3.5719]
[1754331394206,4.47156669,3677.9,3677.8,3.5719]
[1754331394504,0.92606669,3677.9,3677.8,3.5719]
[1754331394800,3.5455,3677.9,3677.8,3.5719]
[1754331395000,4.47156669,3677.9,3677.8,4.11563]
[1754331395204,0.78740745,3677.9,3677.8,7.32343]
[1754331395395,0.92596057,3678.2,3678.1,1.92789]
[1754331395600,0.13855312,3678.3,3678.1,4.11559]
[1754331395792,0.13855312,3678.4,3678.3,4.11557]
[1754331395993,1.15592024,3678.5,3678.3,4.11557]
[1754331396298,0.13855312,3678.5,3678.4,2.1877]
[1754331396499,4.47002826,3678.5,3678.4,1.998]
[1754331396702,1.3887,3678.2,3678.1,3.5719]
[1754331396998,2.7693,3678.2,3678.1,2.2514]
[1754331397300,3.68405312,3678.2,3678.1,3.5719]
[1754331397504,3.68405312,3678.2,3678.1,0.8841]
[1754331397697,1.3887,3677.9,3677.8,3.29523]
[1754331397904,3.5455,3677.9,3677.8,3.29523]
[1754331398103,3.5455,3677.9,3677.8,0.5053]
[1754331398300,0.5695,3678.0,3677.8,0.54374]
[1754331398500,3.2078,3678.3,3678.2,4.11558]
[1754331398898,4.0189,3678.7,3678.6,1.53622]
[1754331399212,0.1384574,3678.7,3678.6,4.11552]
[1754331399400,2.8728574,3679.0,3678.9,1.3842]
[1754331399608,3.6839574,3679.0,3678.9,3.5719]
[1754331399908,0.1384574,3679.0,3678.9,3.5719]
[1754331401016,4.2275174,3679.0,3678.7,0.5436]
[1754331401306,3.5455,3678.8,3678.7,1.0489]
[1754331401600,3.5455,3678.8,3678.7,4.1155]
[1754331401804,2.1649,3678.8,3678.7,4.1155]
[1754331402508,5.3727,3679.1,3679.0,3.5719]
[1754331402910,1.3806,3679.3,3679.1,0.54355]
[1754331403106,2.2727,3679.3,3679.2,3.5719]
[1754331403907,2.1649,3679.5,3679.4,1.3842]
[1754331404101,3.5455,3679.5,3679.4,3.5719]
[1754331404307,3.2078,3679.6,3679.5,4.11539]
[1754331404906,1.9582,3679.9,3679.8,3.5719]
[1754331405205,3.5455,3679.9,3679.8,3.5719]
[1754331405400,3.5455,3679.9,3679.8,0.8841]
[1754331406003,3.5455,3679.9,3679.8,2.7515]
[1754331406604,3.5455,3679.9,3679.8,3.5719]
[1754331409406,3.5455,3679.9,3679.8,2.7515]
[1754331409609,3.5455,3679.9,3679.8,0.8841]
[1754331409806,4.08897,3679.6,3679.5,2.2046]
[1754331410112,3.75127,3679.6,3679.5,2.2046]
[1754331410311,3.75127,3679.6,3679.5,3.5719]
[1754331410516,0.54347,3679.6,3679.5,3.5719]
[1754331411801,0.54347,3679.7,3679.6,3.5719]
[1754331412002,0.54347,3679.7,3679.5,0.54348]
[1754331412003,3.2078,3680.2,3680.1,2.7515]
[1754331412201,6.02388,3680.2,3680.1,3.5719]
[1754331412413,7.29668,3680.2,3680.1,3.5719]
[1754331414014,2.1649,3679.9,3679.8,2.8184]
[1754331414210,0.54342,3680.0,3679.9,2.8184]
[1754331414514,0.54341,3680.1,3680.0,3.61001]
[1754331414816,0.54341,3680.1,3680.0,3.5719]
[1754331415612,2.68741,3680.1,3680.0,3.5719]
[1754331415912,1.93211,3680.1,3680.0,3.5719]
[1754331416513,3.5071,3680.4,3680.3,1.4121]
[1754331416711,0.7602,3680.4,3680.3,3.5051]
[1754331416914,20.1921,3681.0,3680.5,3.5051]
[1754331417121,3.5071,3680.9,3680.8,3.5051]
[1754331417616,2.2252,3680.9,3680.8,3.5051]
[1754331417916,1.4047,3680.9,3680.8,1.4121]
[1754331418117,3.5071,3680.9,3680.8,1.4121]
[1754331418315,23.41081,3681.5,3680.3,3.2078]
[1754331418316,6.3427,3681.1,3681.0,1.4121]
[1754331418621,6.7149,3681.1,3681.0,2.7199]
[1754331419316,6.7149,3681.1,3681.0,3.5051]
[1754331420113,1.94799,3680.9,3680.8,0.8977]
[1754331420312,4.05039,3680.9,3680.8,3.5051]
[1754331420510,3.9631,3681.1,3680.9,0.54328]
[1754331420710,3.2078,3681.1,3681.0,3.5051]
[1754331420908,3.5071,3681.2,3681.1,4.04835]
[1754331421315,3.5071,3681.2,3681.1,2.7199]
[1754331421511,2.1024,3681.1,3680.4,2.093]
[1754331421716,1.9916,3680.2,3680.1,3.5051]
[1754331421915,3.5071,3680.2,3680.1,2.2278]
[1754331422419,1.9916,3680.2,3680.1,3.5051]
[1754331422718,3.29508,3680.9,3680.8,1.4121]
[1754331422912,3.29508,3680.9,3680.8,3.5051]
[1754331423214,4.05038,3680.9,3680.8,3.5051]
[1754331423415,4.05038,3680.9,3680.8,1.4121]
[1754331423712,3.29508,3680.9,3680.8,2.7199]
[1754331423912,0.8988,3681.1,3680.9,1.84287]
[1754331424110,2.2252,3681.4,3681.3,3.5051]
[1754331424312,2.18606216,3681.4,3681.3,3.5051]
[1754331424518,0.78136216,3681.4,3681.3,3.5051]
[1754331426118,2.94136216,3681.4,3681.3,3.5051]
[1754331426418,2.94154409,3681.4,3681.3,3.5051]
[1754331426611,2.16,3681.4,3681.3,3.5051]
[1754331426810,3.5071,3681.4,3681.3,3.5051]
[1754331427525,3.5071,3681.4,3681.3,0.92]
[1754331427814,3.5071,3681.0,3680.9,0.5144]
[1754331428519,2.16,3681.0,3680.9,3.5051]
[1754331428721,2.7469,3681.2,3681.1,2.1973]
[1754331429123,3.2078,3681.5,3681.4,2.7199]
[1754331429418,2.94179598,3681.5,3681.4,3.5051]
[1754331430121,4.28889598,3681.5,3681.4,1.4121]
[1754331430320,4.28889598,3681.5,3681.4,0.5144]
[1754331431217,3.00699598,3681.5,3681.4,3.5051]
[1754331431625,4.28889598,3681.5,3681.4,3.5051]
[1754331432126,4.28889598,3681.5,3681.4,2.2278]
[1754331432327,4.28889598,3681.5,3681.4,3.5051]
[1754331433720,4.28889598,3681.5,3681.4,1.4121]
[1754331433921,4.28889598,3681.5,3681.4,0.5144]
[1754331434923,3.5071,3681.2,3681.1,1.46324]
[1754331435128,2.7469,3680.9,3680.8,1.05768]
[1754331435327,3.5071,3680.9,3680.8,1.05768]
[1754331435727,0.54332,3680.6,3680.5,0.5144]
[1754331435918,3.5071,3680.5,3680.4,1.05775]
[1754331436117,2.16,3680.5,3680.4,3.26325]
[1754331436427,2.7469,3680.5,3680.4,3.26325]
[1754331436628,4.28961285,3680.5,3680.4,3.26325]
[1754331436829,4.28961285,3680.5,3680.1,0.7852]
[1754331436830,1.4047,3680.2,3680.1,0.5144]
[1754331437527,3.5071,3680.2,3680.1,0.5144]
[1754331438029,4.05048,3680.2,3680.1,0.5144]
[1754331438227,4.05048,3680.2,3680.1,1.0065]
[1754331438623,3.5071,3680.2,3680.1,3.5051]
[1754331438818,3.5071,3680.2,3680.0,0.5434]
[1754331438819,1.42145,3680.5,3680.4,1.4121]
[1754331439031,4.83333231,3680.5,3680.4,3.5051]
[1754331439233,4.28998231,3680.5,3680.4,4.04845]
[1754331439424,2.18758231,3680.5,3680.4,4.04845]
[1754331439623,4.28998231,3680.5,3680.4,4.04845]
[1754331439825,2.94288231,3680.5,3680.4,4.04845]
[1754331441227,0.78288231,3680.5,3680.4,4.04845]
[1754331443733,1.94797,3681.0,3680.9,1.95537]
[1754331443930,0.78491591,3681.0,3680.9,1.95537]
[1754331444433,0.78491591,3681.0,3680.9,4.04837]
[1754331445130,1.29081591,3681.0,3680.9,4.04837]
[1754331445332,2.94491591,3681.0,3680.9,4.04837]
[1754331445534,2.18961591,3681.0,3680.9,4.04837]
[1754331445831,0.78491591,3681.0,3680.9,4.04837]
[1754331447434,0.8977,3681.6,3681.5,3.89329]
[1754331447637,1.68358641,3681.6,3681.5,3.89329]
[1754331447832,4.28408641,3681.6,3681.5,3.89329]
[1754331448137,4.28408641,3681.6,3681.5,1.88759]
[1754331449029,4.28408641,3681.6,3681.5,3.89329]
[1754331449430,4.28408641,3681.6,3681.5,0.54319]
[1754331449630,4.28408641,3681.6,3681.5,1.02469]
[1754331449928,4.28408641,3681.6,3681.5,3.16269]
[1754331450738,4.28408641,3681.6,3681.5,1.02469]
[1754331451640,2.9973,3681.0,3680.6,0.5422]
[1754331451834,3.4982,3680.9,3680.8,0.54329]
[1754331452227,3.4982,3680.9,3680.8,0.4815]
[1754331452634,2.7361,3680.7,3680.6,1.02482]
[1754331452839,3.4982,3680.7,3680.6,0.54332]